[Event "Early-Titled-Tuesday-Blitz-January-16-2024"]
[Site "Chess.com"]
[Date "2024.01.16"]
[Round "6"]
[White "HPanesso"]
[Black "BilodeauA"]
[Result "1-0"]
[WhiteElo "2660"]
[BlackElo "2902"]
[TimeControl "180+1"]
[EndTime "9:11:08 PST"]
[Termination "HPanesso won by resignation"]

1. e4 {[%clk 0:03:00.9]} 1... e5 {[%clk 0:02:59.7]} 2. Nf3 {[%clk 0:03:00.1]}
2... Nc6 {[%clk 0:02:59.9]} 3. Bc4 {[%clk 0:02:59.8]} 3... Bc5 {[%clk
0:02:58.7]} 4. d3 {[%clk 0:02:59.4]} 4... Nf6 {[%clk 0:02:58.9]} 5. c3 {[%clk
0:02:58.5]} 5... d6 {[%clk 0:02:59.3]} 6. O-O {[%clk 0:02:57.8]} 6... h6 {[%clk
0:02:59]} 7. Bb3 {[%clk 0:02:56.6]} 7... Bb6 {[%clk 0:02:58.8]} 8. Nbd2 {[%clk
0:02:56.2]} 8... O-O {[%clk 0:02:59.1]} 9. Nc4 {[%clk 0:02:55.8]} 9... Be6
{[%clk 0:02:59.8]} 10. Nxb6 {[%clk 0:02:55.6]} 10... axb6 {[%clk 0:02:58.9]} 11.
Re1 {[%clk 0:02:55.2]} 11... Re8 {[%clk 0:02:49.6]} 12. a3 {[%clk 0:02:53.9]}
12... d5 {[%clk 0:02:44.8]} 13. exd5 {[%clk 0:02:49.8]} 13... Bxd5 {[%clk
0:02:45.7]} 14. Bc2 {[%clk 0:02:46.9]} 14... Qd7 {[%clk 0:02:39.5]} 15. h3
{[%clk 0:02:43.6]} 15... Rad8 {[%clk 0:02:38.8]} 16. Be3 {[%clk 0:02:39.2]}
16... b5 {[%clk 0:02:22.8]} 17. Nd2 {[%clk 0:02:27.3]} 17... b6 {[%clk
0:02:17.8]} 18. Ne4 {[%clk 0:02:15.6]} 18... Qe6 {[%clk 0:02:13.4]} 19. Nxf6+
{[%clk 0:02:02.5]} 19... Qxf6 {[%clk 0:02:13.3]} 20. Qh5 {[%clk 0:02:02.8]}
20... Ne7 {[%clk 0:02:00.7]} 21. a4 {[%clk 0:01:56.6]} 21... bxa4 {[%clk
0:01:56.4]} 22. Rxa4 {[%clk 0:01:57.5]} 22... Nf5 {[%clk 0:01:49.4]} 23. Ra7
{[%clk 0:01:53]} 23... Re7 {[%clk 0:01:42.6]} 24. Qg4 {[%clk 0:01:47.6]} 24...
Rde8 {[%clk 0:01:30.6]} 25. Ba4 {[%clk 0:01:28.7]} 25... Rd8 {[%clk 0:01:29.8]}
26. Bc2 {[%clk 0:01:28.1]} 26... g6 {[%clk 0:01:27.9]} 27. Rea1 {[%clk
0:01:12.7]} 27... Kh7 {[%clk 0:01:26.9]} 28. Kh2 {[%clk 0:01:00.7]} 28... Be6
{[%clk 0:01:22.4]} 29. Qe2 {[%clk 0:01:00.5]} 29... Bd5 {[%clk 0:01:21.4]} 30.
Qg4 {[%clk 0:00:56.1]} 30... Rde8 {[%clk 0:01:21.6]} 31. Ba4 {[%clk 0:00:55.3]}
31... Bc6 {[%clk 0:01:16.9]} 32. Bb3 {[%clk 0:00:44.2]} 32... Rd8 {[%clk
0:01:10.6]} 33. Bc2 {[%clk 0:00:43.9]} 33... Ng7 {[%clk 0:01:05.5]} 34. Rd1
{[%clk 0:00:37.4]} 34... Ne6 {[%clk 0:01:05.5]} 35. f3 {[%clk 0:00:27.4]} 35...
h5 {[%clk 0:01:03.6]} 36. Qg3 {[%clk 0:00:27.1]} 36... Nf4 {[%clk 0:01:04.4]}
37. h4 {[%clk 0:00:16.7]} 37... Ne6 {[%clk 0:00:37.9]} 38. Rd2 {[%clk
0:00:16.6]} 38... Red7 {[%clk 0:00:38]} 39. Bg5 {[%clk 0:00:14.3]} 39... Nxg5
{[%clk 0:00:33.5]} 40. hxg5 {[%clk 0:00:15.2]} 40... Qf5 {[%clk 0:00:28.4]} 41.
d4 {[%clk 0:00:14.6]} 41... Qe6 {[%clk 0:00:28.9]} 42. Qh4 {[%clk 0:00:14.2]}
42... Kg7 {[%clk 0:00:28]} 43. Re2 {[%clk 0:00:09.2]} 43... Rd5 {[%clk
0:00:26.5]} 44. Bb3 {[%clk 0:00:09.5]} 44... Bb5 {[%clk 0:00:16.1]} 45. Bxd5
{[%clk 0:00:09]} 45... Rxd5 {[%clk 0:00:17]} 46. Rxe5 {[%clk 0:00:09]} 46...
Rxe5 {[%clk 0:00:17.4]} 47. dxe5 {[%clk 0:00:09.9]} 47... Qxe5+ {[%clk
0:00:18.1]} 48. Qg3 {[%clk 0:00:10.6]} 48... Qe2 {[%clk 0:00:13.4]} 49. Qxc7
{[%clk 0:00:11]} 49... Bc4 {[%clk 0:00:13.4]} 50. Qe7 {[%clk 0:00:09.5]} 50...
Be6 {[%clk 0:00:12.9]} 51. Qf6+ {[%clk 0:00:09.1]} 51... Kh7 {[%clk 0:00:12.4]}
52. Ra8 {[%clk 0:00:09.6]} 1-0

[Event "Early-Titled-Tuesday-Blitz-January-16-2024"]
[Site "Chess.com"]
[Date "2024.01.16"]
[Round "6"]
[White "Vazabanga"]
[Black "Kostya0705"]
[Result "0-1"]
[WhiteElo "2684"]
[BlackElo "2571"]
[TimeControl "180+1"]
[EndTime "9:11:10 PST"]
[Termination "Kostya0705 won by resignation"]

1. d4 {[%clk 0:02:54]} 1... Nf6 {[%clk 0:02:55.4]} 2. c4 {[%clk 0:02:54.6]} 2...
e6 {[%clk 0:02:54.6]} 3. g3 {[%clk 0:02:54.8]} 3... d5 {[%clk 0:02:52.9]} 4. Nf3
{[%clk 0:02:54.4]} 4... Bb4+ {[%clk 0:02:51.5]} 5. Bd2 {[%clk 0:02:53.8]} 5...
a5 {[%clk 0:02:52]} 6. Bg2 {[%clk 0:02:52]} 6... O-O {[%clk 0:02:52.1]} 7. O-O
{[%clk 0:02:52.1]} 7... dxc4 {[%clk 0:02:52.8]} 8. Qc2 {[%clk 0:02:52.5]} 8...
Bxd2 {[%clk 0:02:51.9]} 9. Nbxd2 {[%clk 0:02:51.9]} 9... b5 {[%clk 0:02:52.8]}
10. a4 {[%clk 0:02:52.1]} 10... c6 {[%clk 0:02:52.7]} 11. b3 {[%clk 0:02:52.6]}
11... cxb3 {[%clk 0:02:52.4]} 12. Nxb3 {[%clk 0:02:53.5]} 12... Bb7 {[%clk
0:02:49]} 13. Nc5 {[%clk 0:02:48.7]} 13... Qb6 {[%clk 0:02:48.7]} 14. Ne5 {[%clk
0:02:48.7]} 14... Nd5 {[%clk 0:02:42.6]} 15. Ncd7 {[%clk 0:02:26.1]} 15... Nxd7
{[%clk 0:02:40.9]} 16. Nxd7 {[%clk 0:02:27]} 16... Qxd4 {[%clk 0:02:41.2]} 17.
Nxf8 {[%clk 0:02:23.9]} 17... Rxf8 {[%clk 0:02:38.6]} 18. axb5 {[%clk
0:02:22.2]} 18... cxb5 {[%clk 0:02:36.7]} 19. Rxa5 {[%clk 0:02:21.7]} 19... Qb6
{[%clk 0:02:27.9]} 20. Ra2 {[%clk 0:02:01.2]} 20... Nb4 {[%clk 0:02:23.1]} 21.
Qb3 {[%clk 0:01:52.3]} 21... Nxa2 {[%clk 0:02:21.2]} 22. Qxa2 {[%clk 0:01:53.2]}
22... Bxg2 {[%clk 0:02:21.1]} 23. Kxg2 {[%clk 0:01:54.1]} 23... h6 {[%clk
0:02:20.3]} 24. Rb1 {[%clk 0:01:53.8]} 24... b4 {[%clk 0:02:18.8]} 25. Qc4
{[%clk 0:01:51.5]} 25... Rb8 {[%clk 0:02:19.2]} 26. Rb3 {[%clk 0:01:51.3]} 26...
Qb5 {[%clk 0:02:18.3]} 27. Qxb5 {[%clk 0:01:43.1]} 27... Rxb5 {[%clk 0:02:19.2]}
28. Kf3 {[%clk 0:01:43.5]} 28... Kf8 {[%clk 0:01:46.5]} 29. Ke4 {[%clk
0:01:43.6]} 29... Ke7 {[%clk 0:01:44.3]} 30. Kd4 {[%clk 0:01:43.7]} 30... Rd5+
{[%clk 0:01:39.9]} 31. Ke3 {[%clk 0:01:38.6]} 31... Rb5 {[%clk 0:01:36.2]} 32.
Kd4 {[%clk 0:01:38.9]} 32... Kd6 {[%clk 0:01:31.5]} 33. Kc4 {[%clk 0:01:37.8]}
33... Re5 {[%clk 0:01:00.6]} 34. e3 {[%clk 0:01:07.3]} 34... Rc5+ {[%clk
0:00:36]} 35. Kd3 {[%clk 0:00:56.1]} 35... Rf5 {[%clk 0:00:36]} 36. f4 {[%clk
0:00:54.6]} 36... Kc5 {[%clk 0:00:36.2]} 37. e4 {[%clk 0:00:48.6]} 37... Rh5
{[%clk 0:00:34.3]} 38. Rb2 {[%clk 0:00:48.2]} 38... Kb5 {[%clk 0:00:30]} 39. Kd4
{[%clk 0:00:38.7]} 39... Rc5 {[%clk 0:00:25.7]} 40. Ra2 {[%clk 0:00:31.3]} 40...
Rc7 {[%clk 0:00:24.2]} 41. Ra8 {[%clk 0:00:28.3]} 41... Rd7+ {[%clk 0:00:24]}
42. Ke3 {[%clk 0:00:27.8]} 42... Kc4 {[%clk 0:00:24.9]} 43. Rg8 {[%clk
0:00:21.9]} 43... b3 {[%clk 0:00:24.5]} 44. Rc8+ {[%clk 0:00:21]} 44... Kb4
{[%clk 0:00:23.5]} 45. Rb8+ {[%clk 0:00:21]} 45... Kc3 {[%clk 0:00:23.8]} 46.
Rc8+ {[%clk 0:00:20.6]} 46... Kb2 {[%clk 0:00:24.1]} 47. h4 {[%clk 0:00:16.5]}
47... Ka1 {[%clk 0:00:22.5]} 48. Ra8+ {[%clk 0:00:14.8]} 48... Kb1 {[%clk
0:00:22.8]} 49. h5 {[%clk 0:00:12.6]} 49... b2 {[%clk 0:00:23]} 50. Ke2 {[%clk
0:00:08.1]} 50... Rd4 {[%clk 0:00:18.8]} 51. e5 {[%clk 0:00:08.3]} 51... Kc2
{[%clk 0:00:18.5]} 52. Rc8+ {[%clk 0:00:07.3]} 52... Kb3 {[%clk 0:00:18.5]} 0-1

[Event "Early-Titled-Tuesday-Blitz-January-16-2024"]
[Site "Chess.com"]
[Date "2024.01.16"]
[Round "6"]
[White "Langua_Chess"]
[Black "MasterofMasters2006"]
[Result "0-1"]
[WhiteElo "2443"]
[BlackElo "2253"]
[TimeControl "180+1"]
[EndTime "9:11:12 PST"]
[Termination "MasterofMasters2006 won on time"]

1. e4 {[%clk 0:03:00.9]} 1... e5 {[%clk 0:02:56.1]} 2. Nf3 {[%clk 0:03:00.4]}
2... Nc6 {[%clk 0:02:56.5]} 3. Bb5 {[%clk 0:03:00.4]} 3... a6 {[%clk 0:02:57]}
4. Bxc6 {[%clk 0:03:00.9]} 4... dxc6 {[%clk 0:02:57.9]} 5. O-O {[%clk
0:03:01.1]} 5... f6 {[%clk 0:02:58.2]} 6. d4 {[%clk 0:03:00.9]} 6... exd4 {[%clk
0:02:59.1]} 7. Qxd4 {[%clk 0:03:01.4]} 7... Qxd4 {[%clk 0:02:58.6]} 8. Nxd4
{[%clk 0:03:02.1]} 8... Bd7 {[%clk 0:02:56.4]} 9. Nc3 {[%clk 0:03:00]} 9...
O-O-O {[%clk 0:02:56.8]} 10. Be3 {[%clk 0:02:50.8]} 10... Bd6 {[%clk 0:02:54.9]}
11. f4 {[%clk 0:02:35.4]} 11... Nh6 {[%clk 0:02:47.3]} 12. h3 {[%clk 0:02:35.5]}
12... Rhe8 {[%clk 0:02:46.3]} 13. Rfe1 {[%clk 0:02:31.2]} 13... Re7 {[%clk
0:02:36.5]} 14. Kf2 {[%clk 0:02:20.7]} 14... Bb4 {[%clk 0:02:32.3]} 15. Kf3
{[%clk 0:02:11.1]} 15... Rde8 {[%clk 0:02:30.2]} 16. Bd2 {[%clk 0:02:09.9]}
16... Nf7 {[%clk 0:02:27]} 17. Re2 {[%clk 0:01:26.2]} 17... Nd6 {[%clk
0:02:23.1]} 18. Rae1 {[%clk 0:01:26.4]} 18... c5 {[%clk 0:02:00.2]} 19. Nb3
{[%clk 0:01:12.5]} 19... Bc6 {[%clk 0:01:35.9]} 20. Kg4 {[%clk 0:00:33.6]} 20...
Bxc3 {[%clk 0:01:18.7]} 21. Bxc3 {[%clk 0:00:33.6]} 21... Nxe4 {[%clk
0:01:19.2]} 22. Nxc5 {[%clk 0:00:31.6]} 22... Nf2+ {[%clk 0:00:38.1]} 23. Rxf2
{[%clk 0:00:16.8]} 23... Rxe1 {[%clk 0:00:39]} 24. Bxe1 {[%clk 0:00:17.3]} 24...
Rxe1 {[%clk 0:00:39.9]} 25. Nd3 {[%clk 0:00:10.3]} 25... Rg1 {[%clk 0:00:35.5]}
26. Kg3 {[%clk 0:00:10.3]} 26... b6 {[%clk 0:00:31.9]} 27. Re2 {[%clk
0:00:09.1]} 27... Bb5 {[%clk 0:00:24.4]} 28. Re7 {[%clk 0:00:06.3]} 28... Bc6
{[%clk 0:00:18.9]} 29. Re2 {[%clk 0:00:05.9]} 29... Bb5 {[%clk 0:00:18.5]} 30.
Kf2 {[%clk 0:00:02.1]} 30... Bxd3 {[%clk 0:00:14.1]} 31. cxd3 {[%clk 0:00:01.8]}
31... Rd1 {[%clk 0:00:13.7]} 32. Re7 {[%clk 0:00:02.2]} 32... Rxd3 {[%clk
0:00:11.7]} 33. Rxg7 {[%clk 0:00:01.8]} 33... Rd2+ {[%clk 0:00:12.1]} 34. Kf3
{[%clk 0:00:02.1]} 34... Rxb2 {[%clk 0:00:11.1]} 35. Rxh7 {[%clk 0:00:02.2]}
35... Rxa2 {[%clk 0:00:11.7]} 36. g4 {[%clk 0:00:02.8]} 36... Ra3+ {[%clk
0:00:10.6]} 37. Ke4 {[%clk 0:00:02.5]} 37... b5 {[%clk 0:00:08.9]} 38. g5 {[%clk
0:00:02.9]} 38... fxg5 {[%clk 0:00:08.1]} 39. fxg5 {[%clk 0:00:03.8]} 39... b4
{[%clk 0:00:08.1]} 40. g6 {[%clk 0:00:04.3]} 40... Rg3 {[%clk 0:00:08.2]} 41.
Kf5 {[%clk 0:00:02.1]} 41... b3 {[%clk 0:00:08.1]} 42. Rh4 {[%clk 0:00:01.7]}
42... a5 {[%clk 0:00:07.4]} 43. Re4 {[%clk 0:00:01.2]} 43... b2 {[%clk 0:00:07]}
44. Re1 {[%clk 0:00:01.7]} 44... a4 {[%clk 0:00:07.3]} 45. h4 {[%clk 0:00:02.2]}
45... a3 {[%clk 0:00:07.7]} 46. h5 {[%clk 0:00:02.8]} 46... a2 {[%clk 0:00:08]}
47. h6 {[%clk 0:00:03.4]} 47... b1=Q+ {[%clk 0:00:08.4]} 48. Rxb1 {[%clk
0:00:02.2]} 48... axb1=Q+ {[%clk 0:00:09.3]} 0-1

[Event "Early-Titled-Tuesday-Blitz-January-16-2024"]
[Site "Chess.com"]
[Date "2024.01.16"]
[Round "6"]
[White "LimeInTheCoconut"]
[Black "KNVB"]
[Result "0-1"]
[WhiteElo "2547"]
[BlackElo "2686"]
[TimeControl "180+1"]
[EndTime "9:11:14 PST"]
[Termination "KNVB won on time"]

1. e4 {[%clk 0:03:00.9]} 1... b6 {[%clk 0:02:59.3]} 2. d4 {[%clk 0:03:00.8]}
2... Bb7 {[%clk 0:02:58.1]} 3. Bd3 {[%clk 0:03:01.5]} 3... e6 {[%clk 0:02:58.6]}
4. Nf3 {[%clk 0:03:01.9]} 4... d5 {[%clk 0:02:59]} 5. exd5 {[%clk 0:02:58.8]}
5... Qxd5 {[%clk 0:02:59.9]} 6. Bf4 {[%clk 0:02:45.6]} 6... Bd6 {[%clk
0:02:58.4]} 7. Bxd6 {[%clk 0:02:41.5]} 7... Qxd6 {[%clk 0:02:53.5]} 8. Nbd2
{[%clk 0:02:41.3]} 8... Nf6 {[%clk 0:02:53.7]} 9. Qe2 {[%clk 0:02:39.6]} 9...
Nbd7 {[%clk 0:02:53]} 10. O-O-O {[%clk 0:02:33.2]} 10... O-O-O {[%clk 0:02:51]}
11. Ne4 {[%clk 0:02:28.4]} 11... Bxe4 {[%clk 0:00:44.8]} 12. Bxe4 {[%clk
0:02:26.1]} 12... Qf4+ {[%clk 0:00:45.3]} 13. Nd2 {[%clk 0:02:26.3]} 13... Nxe4
{[%clk 0:00:26.2]} 14. Qxe4 {[%clk 0:02:25]} 14... Qxe4 {[%clk 0:00:24.5]} 15.
Nxe4 {[%clk 0:02:25.9]} 15... Nf6 {[%clk 0:00:16.2]} 16. Rhe1 {[%clk 0:02:21.5]}
16... Nxe4 {[%clk 0:00:13.3]} 17. Rxe4 {[%clk 0:02:22.4]} 17... Rd5 {[%clk
0:00:11.1]} 18. c4 {[%clk 0:02:12.9]} 18... Rh5 {[%clk 0:00:08.5]} 19. h3 {[%clk
0:02:04.3]} 19... Rd8 {[%clk 0:00:08.9]} 20. Kc2 {[%clk 0:02:02.1]} 20... Rg5
{[%clk 0:00:02.7]} 21. g3 {[%clk 0:01:58.9]} 21... h5 {[%clk 0:00:02.4]} 22. h4
{[%clk 0:01:54.6]} 22... Rf5 {[%clk 0:00:02.6]} 23. Re2 {[%clk 0:01:41.2]} 23...
Kd7 {[%clk 0:00:02.2]} 24. Rd3 {[%clk 0:01:39.6]} 24... Ke7 {[%clk 0:00:02.3]}
25. Kc3 {[%clk 0:01:37.4]} 25... Kf6 {[%clk 0:00:02.4]} 26. b4 {[%clk
0:01:33.8]} 26... c6 {[%clk 0:00:02.7]} 27. a4 {[%clk 0:01:32.4]} 27... Rd7
{[%clk 0:00:02.8]} 28. Rde3 {[%clk 0:01:29.8]} 28... Ke7 {[%clk 0:00:02.7]} 29.
f4 {[%clk 0:01:21.1]} 29... g6 {[%clk 0:00:02.4]} 30. Re5 {[%clk 0:01:13.6]}
30... Kd6 {[%clk 0:00:02.7]} 31. b5 {[%clk 0:01:08.8]} 31... Rc7 {[%clk
0:00:01.9]} 32. Rxf5 {[%clk 0:00:44.4]} 32... gxf5 {[%clk 0:00:02.1]} 33. Re5
{[%clk 0:00:37.4]} 33... c5 {[%clk 0:00:01.6]} 34. d5 {[%clk 0:00:35.6]} 34...
Re7 {[%clk 0:00:01.5]} 35. Kd3 {[%clk 0:00:30.3]} 35... Re8 {[%clk 0:00:02.1]}
36. Ke3 {[%clk 0:00:20.6]} 36... a6 {[%clk 0:00:01.5]} 37. Kd3 {[%clk
0:00:10.6]} 37... Rg8 {[%clk 0:00:01.3]} 38. dxe6 {[%clk 0:00:09.2]} 38... Rxg3+
{[%clk 0:00:01.5]} 39. Re3 {[%clk 0:00:07.4]} 39... Rxe3+ {[%clk 0:00:01.7]} 40.
Kxe3 {[%clk 0:00:08.3]} 40... fxe6 {[%clk 0:00:02.4]} 41. Kd3 {[%clk 0:00:07.2]}
41... axb5 {[%clk 0:00:02.6]} 42. axb5 {[%clk 0:00:06.3]} 42... e5 {[%clk
0:00:02.7]} 43. Ke3 {[%clk 0:00:06.6]} 43... Ke6 {[%clk 0:00:02.9]} 44. Kf3
{[%clk 0:00:06.2]} 44... exf4 {[%clk 0:00:03.6]} 45. Kxf4 {[%clk 0:00:01.1]}
45... Kf6 {[%clk 0:00:03.9]} 46. Kf3 {[%clk 0:00:01.3]} 46... Ke5 {[%clk
0:00:04.5]} 47. Ke3 {[%clk 0:00:01.4]} 47... f4+ {[%clk 0:00:05.2]} 48. Kf3
{[%clk 0:00:02.1]} 48... Kf5 {[%clk 0:00:05.8]} 0-1

[Event "Early-Titled-Tuesday-Blitz-January-16-2024"]
[Site "Chess.com"]
[Date "2024.01.16"]
[Round "6"]
[White "Doublekk14"]
[Black "AradNazari"]
[Result "0-1"]
[WhiteElo "2265"]
[BlackElo "2640"]
[TimeControl "180+1"]
[EndTime "9:11:15 PST"]
[Termination "AradNazari won on time"]

1. c4 {[%clk 0:03:00.9]} 1... g5 {[%clk 0:02:59.8]} 2. Nc3 {[%clk 0:02:58.7]}
2... Bg7 {[%clk 0:02:58.8]} 3. e3 {[%clk 0:02:58.8]} 3... e6 {[%clk 0:02:54.7]}
4. d4 {[%clk 0:02:58.5]} 4... c5 {[%clk 0:02:53.3]} 5. Nf3 {[%clk 0:02:48.7]}
5... g4 {[%clk 0:02:49.1]} 6. Ne5 {[%clk 0:02:47]} 6... d6 {[%clk 0:02:42.5]} 7.
Qxg4 {[%clk 0:02:33.3]} 7... Bf6 {[%clk 0:02:20.3]} 8. Nf3 {[%clk 0:02:14.8]}
8... Nc6 {[%clk 0:02:02.4]} 9. Qe4 {[%clk 0:02:05.3]} 9... Nge7 {[%clk
0:01:53.2]} 10. dxc5 {[%clk 0:01:54.6]} 10... Qa5 {[%clk 0:01:45.7]} 11. Bd2
{[%clk 0:01:48.6]} 11... Qxc5 {[%clk 0:01:45.1]} 12. Be2 {[%clk 0:01:44.4]}
12... e5 {[%clk 0:01:41.8]} 13. Nd5 {[%clk 0:01:27.1]} 13... Nxd5 {[%clk
0:01:41.6]} 14. Qxd5 {[%clk 0:01:26.6]} 14... Bf5 {[%clk 0:01:16.3]} 15. Bc3
{[%clk 0:01:03.4]} 15... Qxd5 {[%clk 0:01:11.4]} 16. cxd5 {[%clk 0:01:02.6]}
16... Ne7 {[%clk 0:01:11.7]} 17. Rd1 {[%clk 0:00:58.4]} 17... Be4 {[%clk
0:01:08.5]} 18. Bb5+ {[%clk 0:00:55.7]} 18... Kd8 {[%clk 0:01:08.2]} 19. Bc4
{[%clk 0:00:43.2]} 19... Rc8 {[%clk 0:01:00.7]} 20. Bb3 {[%clk 0:00:40.8]} 20...
Rg8 {[%clk 0:00:59.2]} 21. Kf1 {[%clk 0:00:35.3]} 21... b5 {[%clk 0:00:56.5]}
22. Bb4 {[%clk 0:00:33.5]} 22... Kd7 {[%clk 0:00:54.4]} 23. Rg1 {[%clk
0:00:29.1]} 23... Rg4 {[%clk 0:00:50.2]} 24. a3 {[%clk 0:00:26.5]} 24... Rcg8
{[%clk 0:00:45.7]} 25. Ne1 {[%clk 0:00:20.5]} 25... Rh4 {[%clk 0:00:38.1]} 26.
h3 {[%clk 0:00:19]} 26... Rc8 {[%clk 0:00:28.7]} 27. Nf3 {[%clk 0:00:15.6]}
27... Bxf3 {[%clk 0:00:25]} 28. gxf3 {[%clk 0:00:15.4]} 28... Rxh3 {[%clk
0:00:25.7]} 29. Ke2 {[%clk 0:00:15]} 29... h5 {[%clk 0:00:18.4]} 30. Rh1 {[%clk
0:00:14.9]} 30... Rxh1 {[%clk 0:00:17.6]} 31. Rxh1 {[%clk 0:00:15.3]} 31... h4
{[%clk 0:00:18.1]} 32. e4 {[%clk 0:00:13.2]} 32... Ng6 {[%clk 0:00:18.2]} 33.
Bd2 {[%clk 0:00:12.4]} 33... Ke7 {[%clk 0:00:17.6]} 34. Kf1 {[%clk 0:00:09.5]}
34... a5 {[%clk 0:00:14.6]} 35. Kg2 {[%clk 0:00:09.2]} 35... a4 {[%clk
0:00:13.7]} 36. Bd1 {[%clk 0:00:09.2]} 36... Nf4+ {[%clk 0:00:12.4]} 37. Bxf4
{[%clk 0:00:09]} 37... exf4 {[%clk 0:00:13.3]} 38. Be2 {[%clk 0:00:08.3]} 38...
Rc5 {[%clk 0:00:10.7]} 39. Bd3 {[%clk 0:00:08.2]} 39... Bxb2 {[%clk 0:00:10.1]}
40. Rxh4 {[%clk 0:00:07.3]} 40... Bxa3 {[%clk 0:00:10.6]} 41. Rxf4 {[%clk
0:00:07.5]} 41... Bc1 {[%clk 0:00:11.1]} 42. Bb1 {[%clk 0:00:06.3]} 42... Bxf4
{[%clk 0:00:10.8]} 0-1

[Event "Early-Titled-Tuesday-Blitz-January-16-2024"]
[Site "Chess.com"]
[Date "2024.01.16"]
[Round "6"]
[White "ural58"]
[Black "yonaltimur"]
[Result "1/2-1/2"]
[WhiteElo "2488"]
[BlackElo "2310"]
[TimeControl "180+1"]
[EndTime "9:11:18 PST"]
[Termination "Game drawn by repetition"]

1. e4 {[%clk 0:03:00.9]} 1... c5 {[%clk 0:03:00]} 2. b3 {[%clk 0:03:00.4]} 2...
d6 {[%clk 0:02:58.9]} 3. Bb2 {[%clk 0:03:00.3]} 3... Nc6 {[%clk 0:02:53.9]} 4.
Bb5 {[%clk 0:02:59.7]} 4... Bd7 {[%clk 0:02:53.4]} 5. Ne2 {[%clk 0:02:59.2]}
5... e6 {[%clk 0:02:52.3]} 6. O-O {[%clk 0:02:49.5]} 6... Nf6 {[%clk 0:02:48.3]}
7. d3 {[%clk 0:02:47.9]} 7... Be7 {[%clk 0:02:48.4]} 8. Nd2 {[%clk 0:02:28.6]}
8... O-O {[%clk 0:02:47.9]} 9. f4 {[%clk 0:02:13.3]} 9... a6 {[%clk 0:02:47.5]}
10. Bxc6 {[%clk 0:02:12.9]} 10... Bxc6 {[%clk 0:02:48.4]} 11. Ng3 {[%clk
0:02:11.3]} 11... b5 {[%clk 0:02:38.9]} 12. Nh5 {[%clk 0:02:09.2]} 12... Nxh5
{[%clk 0:02:37.7]} 13. Qxh5 {[%clk 0:02:01.9]} 13... Bf6 {[%clk 0:02:33.8]} 14.
e5 {[%clk 0:01:59.8]} 14... dxe5 {[%clk 0:02:28.8]} 15. fxe5 {[%clk 0:02:00]}
15... Bg5 {[%clk 0:02:22.4]} 16. Nf3 {[%clk 0:01:57.6]} 16... Be3+ {[%clk
0:02:17.9]} 17. Kh1 {[%clk 0:01:50.8]} 17... Bxf3 {[%clk 0:02:11.1]} 18. Rxf3
{[%clk 0:01:47.1]} 18... Bd4 {[%clk 0:02:08.9]} 19. Bxd4 {[%clk 0:01:43.7]}
19... Qxd4 {[%clk 0:02:09.8]} 20. Re1 {[%clk 0:01:43]} 20... c4 {[%clk
0:01:58.5]} 21. dxc4 {[%clk 0:01:23.7]} 21... bxc4 {[%clk 0:01:59.4]} 22. h3
{[%clk 0:01:19.4]} 22... Qd2 {[%clk 0:01:46.4]} 23. Ref1 {[%clk 0:01:10.8]}
23... Qxc2 {[%clk 0:01:42.3]} 24. Rxf7 {[%clk 0:01:07.9]} 24... Qxa2 {[%clk
0:01:30.3]} 25. bxc4 {[%clk 0:01:03.3]} 25... Qxc4 {[%clk 0:01:27.9]} 26. Rxf8+
{[%clk 0:00:53.3]} 26... Rxf8 {[%clk 0:01:28.8]} 27. Rxf8+ {[%clk 0:00:48.7]}
27... Kxf8 {[%clk 0:01:29.7]} 28. Qxh7 {[%clk 0:00:49.1]} 28... Qc1+ {[%clk
0:01:28.2]} 29. Kh2 {[%clk 0:00:49.2]} 29... Qf4+ {[%clk 0:01:28.1]} 30. Kh1
{[%clk 0:00:49.5]} 30... Qxe5 {[%clk 0:01:26.7]} 31. Qh8+ {[%clk 0:00:49.7]}
31... Kf7 {[%clk 0:01:26.4]} 32. Qa8 {[%clk 0:00:48.7]} 32... a5 {[%clk
0:01:25.6]} 33. Qf3+ {[%clk 0:00:47.2]} 33... Qf5 {[%clk 0:01:23.2]} 34. Qb7+
{[%clk 0:00:46.9]} 34... Kg8 {[%clk 0:01:23.3]} 35. Qa8+ {[%clk 0:00:45.9]}
35... Kh7 {[%clk 0:01:20.2]} 36. Qe8 {[%clk 0:00:45.8]} 36... Qe5 {[%clk
0:01:08.8]} 37. Qa4 {[%clk 0:00:40]} 37... Qe1+ {[%clk 0:01:06.7]} 38. Kh2
{[%clk 0:00:37.3]} 38... Qb4 {[%clk 0:01:06.5]} 39. Qc2+ {[%clk 0:00:33.2]}
39... Kg8 {[%clk 0:01:02.7]} 40. Qc8+ {[%clk 0:00:32.9]} 40... Kf7 {[%clk
0:01:02.3]} 41. Qd7+ {[%clk 0:00:32.8]} 41... Qe7 {[%clk 0:01:01.7]} 42. Qa4
{[%clk 0:00:31.1]} 42... Qd6+ {[%clk 0:00:58.3]} 43. Kh1 {[%clk 0:00:31.2]}
43... Qe5 {[%clk 0:00:57.7]} 44. Qd7+ {[%clk 0:00:23.6]} 44... Kg6 {[%clk
0:00:52.5]} 45. Qe8+ {[%clk 0:00:23.3]} 45... Kh7 {[%clk 0:00:52.2]} 46. Qa4
{[%clk 0:00:18.5]} 46... Qe1+ {[%clk 0:00:35.3]} 47. Kh2 {[%clk 0:00:16.1]}
47... e5 {[%clk 0:00:35.5]} 48. Qg4 {[%clk 0:00:12]} 48... Qe3 {[%clk
0:00:08.6]} 49. Qh5+ {[%clk 0:00:09.5]} 49... Kg8 {[%clk 0:00:07.9]} 50. Qe8+
{[%clk 0:00:08.9]} 50... Kh7 {[%clk 0:00:08]} 51. Qh5+ {[%clk 0:00:09.5]} 51...
Kg8 {[%clk 0:00:07.8]} 52. Qe8+ {[%clk 0:00:09.6]} 52... Kh7 {[%clk 0:00:08.1]}
53. Qh5+ {[%clk 0:00:10]} 1/2-1/2